fUST/lending_fUST_20251031
["ID","MTS","AMOUNT","RATE_DAILY","PERIOD"]
[392713724,1761851447736,-500.0,0.00052054,120]
[392713725,1761851447746,-500.0,0.00052054,120]
[392713726,1761851447756,-500.0,0.00052054,120]
[392713727,1761851447765,-500.0,0.00052054,120]
[392713728,1761851447776,-500.0,0.00052054,120]
[392713729,1761851447785,-500.0,0.00052054,120]
[392713730,1761851447794,-500.0,0.00052054,120]
[392713731,1761851447806,-215.91204917,0.00052054,120]
[392713732,1761851447815,-606.25,0.00052054,120]
[392713733,1761851447824,-500.0,0.00052054,120]
[392713734,1761851447834,-500.0,0.00052054,2]
[392713735,1761851447843,-500.0,0.00052054,120]
[392713736,1761851447852,-151.0,0.000522,28]
[392713737,1761851447862,-500.0,0.00052328,120]
[392713738,1761851447870,-530.68592944,0.00052328,120]
[392713739,1761851447879,-500.0,0.00052328,120]
[392713740,1761851447888,-500.0,0.00052328,120]
[392713741,1761851447898,-178.02,0.00052328,120]
[392713742,1761851447907,-500.0,0.00052328,120]
[392713743,1761851447916,-500.0,0.00052328,120]
[392713744,1761851447926,-500.0,0.00052328,120]
[392713745,1761851447935,-500.0,0.00052328,2]
[392713746,1761851447944,-500.0,0.00052602,120]
[392713747,1761851447954,-500.0,0.00052602,120]
[392713748,1761851447963,-500.0,0.00052602,120]
[392713749,1761851447973,-514.64,0.00052602,120]
[392713750,1761851447982,-500.0,0.00052602,120]
[392713751,1761851447991,-393.857397,0.00052602,2]
[392713752,1761851448000,-199.572655,0.00052632,2]
[392713753,1761851448010,-500.0,0.00052876,120]
[392713754,1761851448019,-500.0,0.00052876,120]
[392713755,1761851448028,-500.0,0.00052876,120]
[392713756,1761851448037,-500.0,0.00052876,120]
[392713757,1761851448046,-500.0,0.0005315,120]
[392713758,1761851448057,-500.0,0.0005315,120]
[392713759,1761851448066,-500.0,0.0005315,120]
[392713760,1761851448076,-500.0,0.0005315,120]
[392713761,1761851448085,-500.0,0.00053424,120]
[392713762,1761851448095,-500.0,0.00053424,120]
[392713763,1761851448104,-500.0,0.00053424,120]
[392713764,1761851448114,-500.0,0.00053424,120]
[392713765,1761851448123,-151.0,0.000535,30]
[392713766,1761851448133,-500.0,0.00053698,120]
[392713767,1761851448143,-600.0,0.00053698,120]
[392713768,1761851448152,-500.0,0.00053698,120]
[392713769,1761851448161,-500.0,0.00053698,120]
[392713770,1761851448170,-176.02120115,0.000538,2]
[392713771,1761851448180,-50072.93,0.000539,60]
[392713772,1761851448189,-151.0,0.000539,120]
[392713773,1761851448199,-151.0,0.000539,30]
[392713774,1761851448208,-266.05,0.000539,30]
[392713775,1761851448218,-532.411105,0.000539,15]
[392713776,1761851448227,-532.411105,0.000539,15]
[392713777,1761851448236,-532.411105,0.000539,15]
[392713778,1761851448246,-532.411105,0.000539,15]
[392713779,1761851448255,-211.103357,0.000539,120]
[392713780,1761851448264,-211.103357,0.000539,120]
[392713781,1761851448274,-211.103357,0.000539,120]
[392713782,1761851448283,-211.103357,0.000539,120]
[392713783,1761851448294,-151.0,0.000539,120]
[392713784,1761851448304,-151.0,0.000539,120]
[392713785,1761851448313,-773.826046,0.000539,120]
[392713786,1761851448323,-151.0,0.000539,120]
[392713787,1761851448332,-773.826046,0.000539,120]
[392713788,1761851448342,-151.0,0.000539,120]
[392713789,1761851448351,-773.826046,0.000539,120]
[392713790,1761851448360,-773.826046,0.000539,120]
[392713791,1761851448369,-151.0,0.000539,120]
[392713792,1761851448378,-151.0,0.000539,120]
[392713793,1761851448388,-151.0,0.000539,120]
[392713794,1761851448397,-440.661864,0.000539,120]
[392713795,1761851448407,-440.661864,0.000539,120]
[392713796,1761851448416,-440.661864,0.000539,120]
[392713797,1761851448425,-440.661864,0.000539,120]
[392713798,1761851448435,-343.224243,0.000539,120]
[392713799,1761851448444,-343.224243,0.000539,120]
[392713800,1761851448454,-343.224243,0.000539,120]
[392713801,1761851448465,-343.224243,0.000539,120]
[392713802,1761851448561,-151.0,0.000539,120]
[392713803,1761851448572,-151.0,0.000539,120]
[392713804,1761851448582,-151.0,0.000539,120]
[392713805,1761851448591,-151.0,0.000539,120]
[392713806,1761851448601,-151.0,0.000539,120]
[392713807,1761851448610,-151.0,0.000539,120]
[392713808,1761851448620,-151.0,0.000539,7]
[392713809,1761851448630,-151.0,0.000539,7]
[392713810,1761851448639,-151.0,0.000539,120]
[392713811,1761851448649,-151.0,0.000539,120]
[392713812,1761851448659,-151.0,0.000539,7]
[392713813,1761851448669,-151.0,0.000539,120]
[392713814,1761851448679,-500.0,0.00053972,120]
[392713815,1761851448688,-500.0,0.00053972,120]
[392713816,1761851448701,-500.0,0.00053972,120]
[392713817,1761851448711,-1270.78291028,0.00053989,84]
[392713818,1761851448720,-516.25423166,0.00054,120]
[392713819,1761851448730,-2294.91415872,0.00054,120]
[392713820,1761851448740,-151.0,0.00054,22]
[392713821,1761851448750,-1000.0,0.00054158,120]
[392713822,1761851448760,-244.0,0.00054158,120]
[392713823,1761851448771,-155.33228,0.0005416,60]
[392713824,1761851448781,-156.888611,0.0005416,60]
[392713825,1761851448790,-9973.9298302,0.00054244,120]
[392713826,1761851448800,-248.767668,0.00054246,120]
[392713827,1761851448810,-500.0,0.00054246,120]
[392713828,1761851448819,-500.0,0.00054246,120]
[392713829,1761851448828,-786.31140633,0.00054344,2]
[392713830,1761851448837,-10000.0,0.0005438,120]
[392713831,1761851448846,-6119.80370744,0.0005438,120]
[392713842,1761852231240,284.00131201,0.0002589,2]
[392713843,1761852255895,-354.0125625,0.00034611,30]
[392713844,1761852259055,499.91,0.00030137,120]
[392713845,1761852259778,-303.26064743,0.00034611,30]
[392713846,1761852262028,-342.72679007,0.00034611,30]
[392713847,1761852262050,-66.27703551,0.00035886,2]
[392713848,1761852262351,-333.72296449,0.00035886,2]
[392713849,1761852262373,-375.28086109,0.00035887,3]
[392713850,1761852272540,-375.67609399,0.00035887,3]
[392713851,1761852275181,-300.0,0.00035887,3]
[392713852,1761852277104,-149.04304492,0.00035887,3]
[392713853,1761852277127,-150.95695508,0.00035887,3]
[392713854,1761852279094,-300.0,0.00035887,3]
[392713855,1761852280898,-300.00000003,0.00035887,3]
[392713856,1761852283817,-168.00363096,0.00035887,3]
[392713857,1761852286057,-168.00363096,0.00035887,3]
[392713858,1761852290526,-113.03578297,0.00035887,3]
[392713859,1761852290548,-54.90380979,0.00035888,2]
[392713860,1761852294889,-190.11636904,0.00035888,2]
[392713861,1761852301413,-175.82579861,0.00035888,2]
[392713862,1761852305401,-336.64396496,0.00035888,2]
[392713864,1761852309242,-196.0323994,0.00035888,2]
[392713865,1761852312151,-279.55148399,0.00035888,2]
[392713866,1761852313020,-279.55148399,0.00035888,2]
[392713873,1761852505055,409.00382558,0.00025,15]
[392713876,1761852543938,166.73781363,0.0002589,2]
[392713912,1761852631928,-180.69458996,0.0003589,2]
[392713914,1761852631938,-2853.96313101,0.0003589,2]
[392713916,1761852631948,-253.0,0.00035965,3]
[392713918,1761852631959,-300.0,0.00035965,2]
[392713920,1761852631968,-239.59946567,0.00035965,3]
[392713922,1761852631979,-160.40053433,0.00035965,3]
[392713924,1761852631991,-253.0,0.00035965,3]
[392713927,1761852632013,-300.0,0.00035965,3]
[392713929,1761852632026,-151.0,0.00035966,2]
[392713931,1761852632037,-151.0,0.00035966,2]
[392713933,1761852632046,-151.0,0.00035966,2]
[392713935,1761852632055,-151.0,0.00035966,2]
[392713936,1761852632065,-151.0,0.00035966,2]
[392713937,1761852632074,-18.87775967,0.00035966,2]
[392713938,1761852632091,-132.12224033,0.00035966,2]
[392713939,1761852632101,-151.0,0.00035966,2]
[392713940,1761852632110,-151.0,0.00035966,2]
[392713941,1761852632120,-151.0,0.00035966,2]
[392713942,1761852632130,-151.0,0.00035966,2]
[392713944,1761852632140,-151.0,0.00035966,2]
[392713946,1761852632149,-151.0,0.00035966,2]
[392713948,1761852632159,-151.0,0.00035966,2]
[392713949,1761852632168,-130.1087495,0.00035966,2]
[392713950,1761852632181,-20.8912505,0.00035966,2]
[392713951,1761852632190,-151.0,0.00035966,2]
[392713952,1761852632200,-151.0,0.00035966,2]
[392713953,1761852632209,-151.0,0.00035966,2]
[392713954,1761852632218,-151.0,0.00035966,2]
[392713955,1761852632228,-151.0,0.00035966,2]
[392713956,1761852632237,-151.0,0.00035966,2]
[392713957,1761852632246,-141.79028207,0.00035978,10]
[392713958,1761852632258,-386.56971793,0.00035978,10]
[392713959,1761852632267,-317.68028222,0.00035978,10]
[392713960,1761852632279,-689.87971778,0.00035978,10]
[392713961,1761852632288,-839.63,0.00035978,10]
[392713962,1761852632298,-699.69,0.00035978,10]
[392713963,1761852632307,-315.94779737,0.00035987,15]
[392713964,1761852632317,-500.0,0.00035987,15]
[392713965,1761852632326,-197.05371428,0.00035987,15]
[392713966,1761852632336,-371.17763406,0.00035987,15]
[392713967,1761852632346,-500.0,0.00035987,15]
[392713968,1761852632356,-500.0,0.00035987,15]
[392713969,1761852632366,-500.0,0.00035987,15]
[392713970,1761852632375,-199.30107671,0.00035987,2]
[392713971,1761852632386,-335.71982481,0.00035987,15]
[392713972,1761852632395,-187.38755688,0.00035987,15]
[392713973,1761852632408,-312.61244312,0.00035987,15]
[392713974,1761852632418,-500.0,0.00035987,15]
[392713975,1761852632427,-500.0,0.00035987,15]
[392713976,1761852632437,-500.0,0.00035987,15]
[392713977,1761852632446,-500.0,0.00035987,15]
[392713978,1761852632457,-197.59565407,0.00035987,15]
[392713979,1761852632466,-310.96391982,0.00035987,15]
[392713980,1761852632478,-73.44128904,0.00035987,15]
[392713981,1761852632488,-385.0,0.00035987,15]
[392713982,1761852632498,-500.0,0.00035987,15]
[392713983,1761852632507,-500.0,0.00035987,15]
[392713984,1761852632516,-500.0,0.00035987,15]
[392713985,1761852632526,-500.0,0.00035987,15]
[392713986,1761852632535,-500.0,0.00035987,15]
[392713987,1761852632544,-500.0,0.00035987,15]
[392713988,1761852632554,-500.0,0.00035987,15]
[392713989,1761852632563,-500.0,0.00035987,15]
[392713990,1761852632573,-500.0,0.00035987,15]
[392713991,1761852632582,-173.376,0.00035987,43]
[392713993,1761852632591,-146993.98690883,0.00035988,2]
[392713994,1761852632604,-1245.10276993,0.00035988,2]
[392714339,1761852637806,-402.9601108,0.00035945,2]
[392714340,1761852637815,-18202.22765807,0.00035988,2]
[392714345,1761852637861,-822.42279838,0.00035988,2]
[392714347,1761852637873,-471.54538709,0.00035988,2]
[392714349,1761852637884,-1049.11911392,0.00035988,2]
[392714353,1761852637917,-1815.33760659,0.00035988,2]
[392714410,1761852640223,-4551.15217874,0.00035988,2]
[392714706,1761852642951,-38948.79110997,0.00035988,2]
[392714725,1761852643132,-18169.75000006,0.00035988,2]
[392715018,1761852645909,-583.08,0.00035978,10]
[392715020,1761852645918,-26341.78142629,0.00035988,2]
[392715854,1761852855957,150.0,0.0002589,2]
[392715855,1761852984423,500.0,0.000253,2]
[392715856,1761852984476,172.31422357,0.00026396,2]
[392715857,1761853005657,-223.5739601,0.00034471,4]
[392715858,1761853005684,-158.27514322,0.00035772,2]
[392715859,1761853005710,-158.27514322,0.00035773,2]
[392715860,1761853005739,-158.27514322,0.00035773,2]
[392715861,1761853005765,-400.0,0.00035872,2]
[392715862,1761853005791,-501.52420529,0.00035873,5]
[392715863,1761853005816,-501.74804614,0.00035873,5]
[392715864,1761853005842,-589.40265798,0.00035873,5]
[392715865,1761853005868,-500.0,0.00035873,5]
[392715866,1761853005898,-503.51060124,0.00035873,2]
[392715867,1761853005927,-500.0,0.00035873,5]
[392715868,1761853005954,-501.97401107,0.00035873,5]
[392715869,1761853006094,-106.89217704,0.00035873,5]
[392715870,1761853006282,-393.10782296,0.00035873,5]
[392715871,1761853006310,-500.0,0.00035873,5]
[392715872,1761853006336,-500.0,0.00035873,5]
[392715873,1761853006364,-500.0,0.00035873,5]
[392715874,1761853006392,-500.0,0.00035873,5]
[392715875,1761853006420,-519.69063191,0.00035873,5]
[392715876,1761853006447,-500.0,0.00035873,5]
[392715877,1761853006475,-540.09986355,0.00035873,5]
[392715878,1761853006502,-575.36225419,0.00035873,5]
[392715879,1761853006532,-442.54056061,0.00035873,5]
[392715880,1761853006602,-58.40773356,0.00035873,5]
[392715881,1761853006629,-501.64717197,0.00035873,5]
[392715882,1761853006662,-498.35336487,0.00035873,5]
[392715883,1761853006694,-500.0,0.00035873,5]
[392715884,1761853006722,-501.73163982,0.00035873,5]
[392715885,1761853006750,-500.0,0.00035873,5]
[392715886,1761853006779,-500.69189299,0.00035873,5]
[392715887,1761853006807,-501.59203089,0.00035873,5]
[392715888,1761853006833,-500.0,0.00035873,5]
[392715889,1761853006860,-500.0,0.00035873,5]
[392715890,1761853006887,-375.1623318,0.00035873,5]
[392715891,1761853006919,-124.8376682,0.00035873,5]
[392715892,1761853006946,-500.0,0.00035873,5]
[392715893,1761853006973,-1902.64208734,0.00035877,2]
[392715894,1761853006999,-200.0,0.00035877,3]
[392715895,1761853007027,-500.0,0.00035886,15]
[392715896,1761853007054,-611.48457101,0.00035886,15]
[392715897,1761853007083,-500.0,0.00035886,15]
[392715898,1761853007111,-500.0,0.00035886,15]
[392715899,1761853007181,-500.0,0.00035886,15]
[392715900,1761853007209,-500.0,0.00035886,15]
[392715901,1761853007239,-500.0,0.00035886,15]
[392715902,1761853007266,-500.0,0.00035886,15]
[392715903,1761853007293,-500.0,0.00035886,15]
[392715904,1761853007321,-500.0,0.00035886,15]
[392715905,1761853007352,-500.0,0.00035886,15]
[392715906,1761853007379,-453.47098432,0.00035886,15]
[392715907,1761853007407,-371.87728098,0.00035886,15]
[392715908,1761853007437,-500.0,0.00035886,15]
[392715909,1761853008208,-89.74753743,0.00035878,10]
[392715910,1761853008227,-371.87728098,0.00035878,10]
[392715911,1761853008241,-500.0,0.00035878,10]
[392715912,1761853008255,-349.3134694,0.00035878,10]
[392715913,1761853008416,-785.12171219,0.00035878,10]
[392715914,1761853008444,-422.08132893,0.00035886,15]
[392715915,1761853008473,-500.0,0.00035886,15]
[392715916,1761853008585,-500.0,0.00035886,15]
[392715917,1761853008613,-500.0,0.00035886,15]
[392715918,1761853008643,-500.0,0.00035886,15]
[392715919,1761853008675,-500.0,0.00035886,15]
[392715920,1761853008705,-500.0,0.00035886,15]
[392715921,1761853008734,-500.0,0.00035886,15]
[392715922,1761853008762,-85.60391776,0.00035886,15]
[392715923,1761853008882,-414.39608224,0.00035886,15]
[392715924,1761853008915,-500.0,0.00035886,15]
[392715925,1761853008945,-500.0,0.00035886,15]
[392715926,1761853008973,-500.0,0.00035886,15]
[392715927,1761853009001,-620.20245011,0.00035886,15]
[392715928,1761853009029,-500.0,0.00035886,15]
[392715929,1761853009057,-500.0,0.00035886,15]
[392715930,1761853009331,-414.39608224,0.00035887,2]
[392715931,1761853009345,-2930.8129353,0.00035887,2]
[392715932,1761853009359,-10000.01,0.00035887,2]
[392715933,1761853011546,-10000.01,0.00035887,2]
[392715934,1761853011675,-10000.01,0.00035887,2]
[392715935,1761853011810,-10000.01,0.00035887,2]
[392715936,1761853019420,160.0,0.00029,2]
[392715937,1761853020507,-1746.71,0.00035878,10]
[392715938,1761853020537,-1312.75961582,0.00035887,2]
[392715939,1761853020576,-3881.07076836,0.00035887,2]
[392715940,1761853020954,-221.16345816,0.00035887,15]
[392715941,1761853020988,-555.7888958,0.00035887,15]
[392715942,1761853021019,-500.0,0.00035888,30]
[392715943,1761853021084,-7446.10529208,0.00035888,2]
[392715944,1761853021114,-10000.01,0.00035888,2]
[392715945,1761853023578,-10000.01,0.00035888,2]
[392715946,1761853041759,-1580.45,0.00035878,10]
[392715947,1761853041796,-1317.05,0.00035878,10]
[392715948,1761853041826,-1664.2631618,0.00035887,2]
[392715949,1761853041882,-876.4836764,0.00035887,2]
[392715950,1761853042440,-10000.01,0.00035888,2]
[392715951,1761853042594,-10000.01,0.00035888,2]
[392715952,1761853042705,-10000.01,0.00035888,2]
[392715953,1761853044635,-10000.01,0.00035888,2]
[392715954,1761853048377,-208.57736393,0.00031,120]
[392715955,1761853048399,-208.57736393,0.000319,120]
[392715956,1761853050723,-1097.54,0.00035878,10]
[392715957,1761853050756,-7804.93,0.00035888,2]
[392715958,1761853056744,-500.0,0.00035873,5]
[392715959,1761853056777,-9000.01,0.00035888,2]
[392715960,1761853086220,171.668234,0.00013699,2]
[392715961,1761853086449,171.668234,0.00020187,2]
[392715962,1761853086668,171.668234,0.00026676,2]
[392715964,1761853168306,150.0,0.0002589,2]
[392715965,1761853168659,177.0,0.0002789,2]
[392715966,1761853169080,-204.0,0.0002989,2]
[392715967,1761853169372,205.23589123,0.0003189,2]
[392715968,1761853172701,-860.69783032,0.00033065,2]
[392715969,1761853260991,200000.0,0.00036299,60]
[392715970,1761853335609,-896.27120836,0.00029762,2]
[392715971,1761853335638,-388.7490295,0.00033065,2]
[392715972,1761853335667,-171.668234,0.00033165,2]
[392715973,1761853335697,-1000.0,0.00035,20]
[392715974,1761853335728,-1000.0,0.000355,20]
[392715975,1761853335759,-400.0,0.0003585,2]
[392715976,1761853335870,-2286.63305628,0.00035851,2]
[392715977,1761853341523,-10000.01,0.00035851,2]
[392715978,1761853347788,-1409.89756952,0.00035851,2]
[392715979,1761853347817,-3211.41634421,0.00035866,2]
[392715980,1761853347848,-151.0,0.00035866,2]
[392715981,1761853347878,-151.0,0.00035866,2]
[392715982,1761853347909,-2.38217254,0.00035866,2]
[392715983,1761853347992,-148.61782746,0.00035866,2]
[392715984,1761853350600,-151.0,0.00035866,2]
[392715985,1761853350631,-151.0,0.00035866,2]
[392715986,1761853350662,-151.0,0.00035866,2]
[392715987,1761853350694,-151.0,0.00035866,2]
[392715988,1761853350725,-151.0,0.00035866,2]
[392715989,1761853350756,-151.0,0.00035866,2]
[392715990,1761853350786,-151.0,0.00035866,2]
[392715991,1761853350816,-151.0,0.00035866,2]
[392715992,1761853350847,-151.0,0.00035866,2]
[392715993,1761853350876,-151.0,0.00035866,2]
[392715994,1761853351000,-151.0,0.00035866,2]
[392715995,1761853351033,-151.0,0.00035866,2]
[392715996,1761853351063,-151.0,0.00035866,2]
[392715997,1761853351094,-151.0,0.00035866,2]
[392715998,1761853351123,-151.0,0.00035866,2]
[392715999,1761853351152,-151.0,0.00035866,2]
[392716000,1761853351181,-151.0,0.00035866,2]
[392716001,1761853351210,-441.08,0.00035878,10]
[392716002,1761853351238,-841.1,0.00035878,10]
[392716003,1761853351265,-638.15,0.00035878,3]
[392716004,1761853351574,-1025.35,0.00035878,10]
[392716005,1761853356637,-266.83,0.00035878,10]
[392716006,1761853356667,-1320.86,0.00035878,10]
[392716043,1761853832210,-999.0,0.0003456,2]
[392716044,1761853832220,-811.54911172,0.00035415,2]
[392716045,1761853832231,-406.34750728,0.00035415,2]
[392716046,1761853832240,-1217.8966191,0.00035671,2]
[392716047,1761853832250,-2035.71626236,0.00035684,2]
[392716048,1761853832259,-400.0,0.00035708,2]
[392716049,1761853832268,-181.8259136,0.00035725,2]
[392716050,1761853832278,-326.3357103,0.00035725,2]
[392716051,1761853832287,-251.93979888,0.00035865,4]
[392716052,1761853832296,-151.0,0.00035866,2]
[392716053,1761853832310,-151.0,0.00035866,2]
[392716054,1761853832319,-151.0,0.00035866,2]
[392716055,1761853832328,-151.0,0.00035866,2]
[392716056,1761853832338,-151.0,0.00035866,2]
[392716057,1761853832347,-151.0,0.00035866,2]
[392716058,1761853832357,-151.0,0.00035866,2]
[392716059,1761853832366,-151.0,0.00035866,2]
[392716060,1761853832375,-151.0,0.00035866,2]
[392716061,1761853832384,-151.0,0.00035866,2]
[392716062,1761853832394,-151.0,0.00035866,2]
[392716063,1761853832403,-151.0,0.00035866,2]
[392716064,1761853832412,-151.0,0.00035866,2]
[392716065,1761853832425,-151.0,0.00035866,2]
[392716066,1761853832436,-151.0,0.00035866,2]
[392716067,1761853832445,-151.0,0.00035866,2]
[392716068,1761853832455,-151.0,0.00035866,2]
[392716069,1761853832466,-151.0,0.00035866,2]
[392716070,1761853832475,-151.0,0.00035866,2]
[392716071,1761853832484,-151.0,0.00035866,2]
[392716072,1761853832493,-500.0,0.00035873,5]
[392716073,1761853832504,-500.0,0.00035873,5]
[392716074,1761853832513,-500.0,0.00035873,5]
[392716075,1761853832522,-500.0,0.00035873,5]
[392716076,1761853832531,-500.0,0.00035873,5]
[392716077,1761853832540,-500.0,0.00035873,5]
[392716078,1761853832549,-500.0,0.00035873,5]
[392716079,1761853832558,-500.0,0.00035873,5]
[392716080,1761853832567,-300.0,0.00035873,5]
[392716081,1761853832577,-500.0,0.00035873,5]
[392716082,1761853832586,-500.0,0.00035873,5]
[392716083,1761853832594,-502.14300269,0.00035873,5]
[392716084,1761853832603,-179.41560908,0.00035873,2]
[392716085,1761853832614,-4794.09715861,0.00035873,2]
[392716086,1761853832623,-1100.71,0.00035878,10]
[392716087,1761853832632,-200.91,0.00035886,43]
[392716088,1761853832641,-500.0,0.00035886,4]
[392716089,1761853832651,-199.0,0.00035886,7]
[392716090,1761853832660,-500.0,0.00035887,15]
[392716091,1761853832669,-309.99097768,0.00035887,15]
[392716092,1761853832678,-228.24553833,0.00035887,15]
[392716093,1761853832687,-500.0,0.00035887,15]
[392716094,1761853832697,-500.0,0.00035887,15]
[392716095,1761853832706,-376.61126463,0.00035887,15]
[392716096,1761853832715,-235.01662376,0.00035887,15]
[392716097,1761853832725,-500.0,0.00035887,2]
[392716098,1761853832734,-500.0,0.00035887,15]
[392716099,1761853832743,-500.0,0.00035887,15]
[392716100,1761853832753,-500.0,0.00035887,15]
[392716101,1761853832762,-500.0,0.00035887,2]
[392716102,1761853832771,-500.0,0.00035887,15]
[392716103,1761853832781,-500.0,0.00035887,15]
[392716104,1761853832790,-500.0,0.00035887,15]
[392716105,1761853832799,-500.0,0.00035887,2]
[392716106,1761853832808,-265.66711173,0.00035887,15]
[392716107,1761853832817,-500.0,0.00035887,15]
[392716108,1761853832826,-440.9400612,0.00035887,15]
[392716109,1761853832835,-428.0467107,0.00035887,2]
[392716110,1761853832844,-500.0,0.00035887,15]
[392716111,1761853832854,-255.55882831,0.00035887,15]
[392716112,1761853832864,-500.0,0.00035887,15]
[392716113,1761853832873,-500.0,0.00035887,4]
[392716114,1761853832883,-65937.81365525,0.00035888,2]
[392716115,1761853832898,-213588.10757451,0.00035888,2]
[392716116,1761853832913,-2159.3674725,0.00035888,2]
[392716127,1761853838020,-203.89272608,0.00035315,2]
[392716129,1761853838029,-103.94377372,0.00035888,2]
[392716134,1761853838072,-13401.29660537,0.00035888,2]
[392716137,1761853838084,-17829.21639541,0.00035888,2]
[392716139,1761853838095,-10368.25554606,0.00035888,2]
[392716189,1761853840372,-0.0078766,0.00035888,2]
[392716190,1761853840387,-10658.0,0.00035888,2]
[392716234,1761853843181,-303.05757821,0.00035494,36]
[392716235,1761853843191,-917.26,0.00035878,10]
[392716237,1761853843200,-17270.18732976,0.00035888,2]
[392716331,1761853846075,-15049.3706106,0.00035888,2]
[392716338,1761853846129,-22750.0,0.00035888,2]
[392716340,1761853846140,-3701.0,0.00035888,2]
[392716345,1761853846183,-207932.32786814,0.00035888,2]
[392716347,1761853846193,-620.60998794,0.00035957,38]
[392716349,1761853846202,-500.0,0.00035973,5]
[392716351,1761853846212,-500.0,0.00035973,5]
[392716353,1761853846221,-500.0,0.00035973,5]
[392716355,1761853846230,-500.0,0.00035973,5]
[392716357,1761853846240,-500.0,0.00035973,5]
[392716359,1761853846249,-500.0,0.00035973,5]
[392716360,1761853846258,-500.0,0.00035973,5]
[392716361,1761853846267,-500.0,0.00035973,5]
[392716362,1761853846276,-500.0,0.00035973,5]
[392716363,1761853846285,-500.0,0.00035973,5]
[392716364,1761853846295,-645.77166234,0.00035973,5]
[392716365,1761853846304,-500.0,0.00035973,5]
[392716366,1761853846313,-500.0,0.00035973,5]
[392716367,1761853846322,-500.0,0.00035973,5]
[392716368,1761853846331,-500.0,0.00035973,5]
[392716369,1761853846340,-518.952437,0.00035988,2]
[392716370,1761853846349,-18844.5589737,0.00035988,2]
[392716371,1761853846359,-1574.07799568,0.0003599,2]
[392716372,1761853846368,-4276.65,0.00036,14]
[392716373,1761853846377,-331.04,0.00036,14]
[392716374,1761853846386,-153.619015,0.00036084,2]
[392716375,1761853846395,-153.619015,0.00036145,2]
[392716376,1761853846404,-155.123184,0.00036145,2]
[392716377,1761853846414,-500.0,0.00036162,30]
[392716378,1761853846424,-524.46901848,0.00036181,2]
[392716379,1761853846435,-589.86901678,0.00036188,2]
[392716380,1761853846444,-5000.0,0.00036262,3]
[392716381,1761853846454,-265.0,0.00036269,2]
[392716382,1761853846463,-200.0,0.00036355,30]
[392716383,1761853846473,-1000.0,0.00036355,4]
[392716384,1761853846483,-258.98,0.00036421,5]
[392716385,1761853846492,-470.26798814,0.00036421,5]
[392716386,1761853846501,-357.57967752,0.00036421,5]
[392716387,1761853846512,-1000.0,0.00036421,5]
[392716388,1761853846521,-1000.0,0.00036421,5]
[392716389,1761853846531,-1000.0,0.00036421,5]
[392716390,1761853846540,-1000.0,0.00036421,5]
[392716391,1761853846549,-1004.67989096,0.00036421,5]
[392716392,1761853846558,-1000.0,0.00036421,5]
[392716393,1761853846568,-585.09824827,0.00036421,5]
[392716394,1761853846577,-1000.0,0.00036421,5]
[392716395,1761853846586,-175.455,0.00036489,5]
[392716396,1761853846595,-1000.0,0.00036521,5]
[392716397,1761853846605,-640.15350997,0.00036521,5]
[392716398,1761853846615,-763.90423775,0.00036521,5]
[392716399,1761853846624,-649.07736176,0.00036521,5]
[392716400,1761853846633,-976.68354607,0.00036521,5]